bitfinex/quotes_BTCUSD_20220111
["timestamp","ask_amount","ask_price","bid_price","bid_amount"]
[1641898613062,0.2,41651.0,41647.0,0.67815177]
[1641898613266,0.0478,41650.0,41647.0,0.47045177]
[1641898613459,0.00128566,41649.0,41647.0,0.47045177]
[1641898613658,0.0478,41648.0,41646.0,1.01873027]
[1641898613860,0.38619385,41648.0,41646.0,1.01873027]
[1641898614060,0.05,41647.0,41644.0,0.00299974]
[1641898614260,0.32227212,41649.0,41644.0,0.00299974]
[1641898614261,0.0478,41646.0,41644.0,0.00299974]
[1641898614461,0.04180047,41646.0,41645.0,0.439016]
[1641898615160,0.04180047,41646.0,41645.0,0.72424117]
[1641898615819,0.00124353,41654.0,41645.0,0.72424117]
[1641898616015,0.0478,41653.0,41645.0,0.72424117]
[1641898616216,0.05,41650.0,41645.0,0.66422117]
[1641898617017,0.05,41650.0,41647.0,0.91786953]
[1641898617216,0.05,41650.0,41648.0,0.132388]
[1641898617617,0.00085784,41654.0,41648.0,0.192394]
[1641898617821,0.00085784,41654.0,41649.0,0.26700784]
[1641898618016,0.00085784,41654.0,41650.0,0.375746]
[1641898618422,0.05,41656.0,41652.0,0.30601795]
[1641898618617,0.0008579,41654.0,41652.0,0.30601795]
[1641898618918,0.22001562,41669.0,41652.0,0.367226]
[1641898618919,0.00126351,41669.0,41652.0,0.367226]
[1641898619118,0.00126351,41669.0,41656.0,0.132274]
[1641898619319,0.00126351,41669.0,41653.0,0.0478]
[1641898619565,0.025,41659.0,41657.0,0.31530946]
[1641898619764,0.025,41659.0,41658.0,0.375796]
[1641898620763,0.2853,41668.0,41658.0,0.375796]
[1641898620969,0.00060341,41661.0,41657.0,0.31530946]
[1641898621164,0.00060341,41661.0,41658.0,0.375796]
[1641898621366,0.00060341,41661.0,41659.0,0.059999]
[1641898621569,0.00460341,41661.0,41660.0,0.132211]
[1641898621765,0.00460341,41661.0,41657.0,0.31530946]
[1641898621964,0.004,41661.0,41656.0,0.91786953]
[1641898622167,0.004,41661.0,41660.0,0.19931107]
[1641898622666,1.73704394,41661.0,41657.0,0.19931107]
[1641898622866,0.37703394,41661.0,41657.0,0.19931107]
[1641898623064,0.47023424,41661.0,41657.0,0.19931107]
[1641898623517,0.4810921,41661.0,41657.0,0.19931107]
[1641898624109,0.82145213,41661.0,41652.0,0.91786953]
[1641898624310,0.27465879,41656.0,41651.0,0.00030706]
[1641898624509,0.32465879,41656.0,41650.0,0.24825601]
[1641898624712,0.32465879,41656.0,41651.0,0.00030706]
[1641898625215,0.35228159,41655.0,41651.0,0.00030706]
[1641898625411,0.06002332,41654.0,41651.0,0.00030706]
[1641898625612,0.06002332,41654.0,41648.0,0.032]
[1641898625812,0.375796,41653.0,41651.0,0.00030709]
[1641898626016,0.27307235,41652.0,41651.0,0.00030709]
[1641898626215,0.64886835,41652.0,41651.0,0.00030709]
[1641898626510,0.69886835,41652.0,41651.0,0.00030709]
[1641898626968,0.14038599,41652.0,41648.0,0.032]
[1641898627265,0.05,41652.0,41649.0,0.00030711]
[1641898627463,0.03,41652.0,41649.0,0.00030711]
[1641898628063,0.03,41652.0,41648.0,0.37221235]
[1641898628266,0.03,41652.0,41649.0,0.375906]
[1641898628462,0.03,41652.0,41650.0,0.25854325]
[1641898628864,0.06001582,41655.0,41650.0,0.25854325]
[1641898629164,0.40878809,41655.0,41650.0,0.25854325]
[1641898629464,0.060016,41653.0,41650.0,0.25885035]
[1641898629663,0.375906,41652.0,41650.0,0.25885035]
[1641898629863,0.43592893,41652.0,41651.0,0.21030986]
[1641898630063,0.11002293,41652.0,41651.0,0.21030986]
[1641898631314,0.06002293,41652.0,41651.0,0.21030986]
[1641898631508,0.07802293,41652.0,41651.0,0.21430986]
[1641898632712,0.07802293,41652.0,41651.0,0.21030986]
[1641898632912,0.06002293,41652.0,41651.0,0.21030986]
[1641898633112,0.3343813,41652.0,41651.0,0.21030986]
[1641898633313,0.7102873,41652.0,41651.0,0.21030986]
[1641898633512,0.7282873,41652.0,41651.0,0.21430986]
[1641898634562,0.7282873,41652.0,41651.0,0.004]
[1641898634762,0.7102873,41652.0,41650.0,0.21030986]
[1641898634963,0.375906,41651.0,41650.0,0.21030986]
[1641898635161,0.435927,41651.0,41648.0,0.032]
[1641898635363,0.110021,41651.0,41648.0,0.032]
[1641898635562,0.069021,41651.0,41650.0,0.004]
[1641898636862,0.71097797,41651.0,41648.0,0.03230713]
[1641898637463,0.073021,41651.0,41648.0,0.03730713]
[1641898637664,0.073021,41651.0,41648.0,0.037]
[1641898638311,0.05513272,41651.0,41648.0,0.037]
[1641898638711,0.05513272,41651.0,41648.0,0.032]
[1641898638909,0.04213272,41651.0,41648.0,0.032]
[1641898639116,0.30952602,41649.0,41648.0,0.032]
[1641898639509,0.06002421,41650.0,41648.0,0.046]
[1641898640512,0.30292822,41649.0,41648.0,0.046]
[1641898640810,0.30292822,41649.0,41648.0,0.032]
[1641898641011,0.67546751,41649.0,41648.0,0.032]
[1641898641615,0.67946751,41649.0,41648.0,0.055]
[1641898642261,1.05537351,41649.0,41648.0,0.055]
[1641898642863,1.05137351,41649.0,41648.0,0.032]
[1641898643064,1.30242691,41649.0,41646.0,0.00030715]
[1641898643263,0.49598528,41648.0,41646.0,0.00030715]
[1641898643463,0.92662229,41647.0,41646.0,0.00030715]
[1641898643664,0.92662229,41647.0,41645.0,0.0032]
[1641898643665,1.45252829,41647.0,41645.0,0.0032]
[1641898643863,1.45252829,41647.0,41645.0,0.00350717]
[1641898643864,0.66375874,41646.0,41645.0,0.00350717]
[1641898644064,0.76375874,41646.0,41645.0,0.00350717]
[1641898644463,1.23233178,41646.0,41645.0,0.00350717]
[1641898644863,1.23133178,41646.0,41645.0,0.0032]
[1641898645465,1.24333178,41646.0,41645.0,0.0032]
[1641898645707,1.54720412,41646.0,41645.0,0.0022]
[1641898646108,1.54720412,41646.0,41642.0,0.81712198]
[1641898646308,0.060046,41645.0,41643.0,0.00030719]
[1641898646507,0.7495104,41644.0,41643.0,0.00030719]
[1641898646709,0.8095564,41644.0,41637.0,0.00232894]
[1641898646914,0.8095564,41644.0,41640.0,0.81606885]
[1641898646915,0.06005421,41642.0,41640.0,0.81606885]
[1641898647107,0.51166761,41641.0,41640.0,0.81606885]
[1641898647307,0.32565215,41635.0,41634.0,0.91896953]
[1641898647509,0.73592117,41635.0,41634.0,0.91896953]
[1641898647709,0.73592117,41635.0,41634.0,0.0011]
[1641898647908,0.51026902,41635.0,41629.0,1.31717242]
[1641898648107,0.2478,41635.0,41629.0,1.31717242]
[1641898648307,0.44091999,41634.0,41629.0,1.31717242]
[1641898648625,0.91571471,41634.0,41628.0,0.010736]
[1641898649206,0.87577471,41634.0,41628.0,0.010736]
[1641898649471,0.97577471,41634.0,41628.0,0.010736]
[1641898649662,0.99277471,41634.0,41628.0,0.010736]
[1641898649863,0.99277471,41634.0,41631.0,0.000256]
[1641898650061,0.50571999,41634.0,41631.0,0.000256]
[1641898650463,0.56577999,41634.0,41631.0,0.000256]
[1641898650662,1.49277471,41634.0,41631.0,0.000256]
[1641898650861,1.47577471,41634.0,41628.0,0.010736]
[1641898651062,1.57577471,41634.0,41631.0,0.00029821]
[1641898651262,1.24877999,41634.0,41631.0,0.00029821]
[1641898651563,0.62686,41634.0,41631.0,0.00029821]
[1641898651765,0.5668,41634.0,41631.0,0.00029821]
[1641898651969,0.519,41634.0,41628.0,0.001125]
[1641898652361,0.519,41634.0,41631.0,0.00029821]
[1641898652561,0.76924503,41634.0,41631.0,1.97214181]
[1641898652761,0.0478,41639.0,41631.0,1.97214181]
[1641898653209,0.0478,41639.0,41631.0,1.9718436]
[1641898653210,0.060048,41637.0,41631.0,1.9718436]
[1641898653410,0.060048,41637.0,41634.0,0.00029818]
[1641898653812,0.26366555,41635.0,41634.0,0.00029818]
[1641898654015,0.69186353,41635.0,41634.0,0.00029818]
[1641898654518,1.57933665,41635.0,41630.0,0.81624359]
[1641898654712,1.57813339,41635.0,41632.0,0.0002982]
[1641898654912,0.375928,41634.0,41632.0,0.0002982]
[1641898655211,0.975928,41634.0,41632.0,0.0002982]
[1641898655412,1.025928,41634.0,41632.0,0.0002982]
[1641898655613,1.093928,41634.0,41628.0,0.001125]
[1641898655813,0.060066,41632.0,41631.0,0.00029821]
[1641898656013,0.47207773,41632.0,41631.0,0.00029821]
[1641898656413,0.63214436,41632.0,41631.0,0.00029821]
[1641898656714,0.45032463,41632.0,41631.0,0.00029821]
[1641898656962,0.060062,41631.0,41628.0,0.001125]
[1641898657163,0.060062,41631.0,41629.0,0.00029824]
[1641898657357,0.05,41630.0,41629.0,0.00029824]
[1641898658258,0.05,41630.0,41628.0,0.001125]
[1641898658457,0.060065,41629.0,41628.0,0.001125]
[1641898658658,0.38705972,41629.0,41628.0,0.001125]
[1641898658859,0.43485972,41629.0,41628.0,0.001125]
[1641898659662,0.44185972,41629.0,41628.0,0.013125]
[1641898660259,0.114865,41629.0,41628.0,0.013125]
[1641898660912,0.107865,41629.0,41628.0,0.001125]
[1641898661313,0.38873839,41629.0,41628.0,0.001125]
[1641898661513,0.49673839,41629.0,41628.0,0.014125]
[1641898662217,0.115865,41629.0,41628.0,0.014125]
[1641898662913,0.107865,41629.0,41628.0,0.001125]
[1641898663514,0.107865,41629.0,41628.0,0.020125]
[1641898663714,0.114865,41629.0,41628.0,0.020125]
[1641898663915,0.44185972,41629.0,41628.0,0.020125]
[1641898664116,0.64001214,41629.0,41627.0,0.01303791]
[1641898664316,0.32699472,41628.0,41627.0,0.01303791]
[1641898664565,0.52699472,41628.0,41627.0,0.01303791]
[1641898664869,0.060079,41626.0,41625.0,6.0507539]
[1641898665065,0.060079,41626.0,41625.0,5.48385246]
[1641898665066,1.53252103,41626.0,41625.0,5.48385246]
[1641898665267,1.55552178,41626.0,41625.0,5.00319446]
[1641898665465,0.70909341,41626.0,41625.0,5.00319446]
[1641898665764,0.71909341,41626.0,41625.0,5.00319446]
[1641898665963,0.71909341,41626.0,41625.0,4.99819446]
[1641898666164,0.81909341,41626.0,41625.0,4.99819446]
[1641898666564,1.11271444,41626.0,41625.0,4.99819446]
[1641898666763,1.10150003,41626.0,41625.0,4.99819446]
[1641898666966,1.04142103,41626.0,41625.0,4.99819446]
[1641898667164,0.94142103,41626.0,41625.0,4.99819446]
[1641898667368,1.04142103,41626.0,41625.0,4.99819446]
[1641898667565,0.6628,41626.0,41625.0,4.99819446]
[1641898668412,0.1628,41626.0,41625.0,4.99819446]
[1641898668612,0.43312016,41626.0,41625.0,4.99819446]
[1641898668811,0.1478,41626.0,41625.0,4.99819446]
[1641898669612,0.1718,41626.0,41625.0,4.99819446]
[1641898670913,0.0978,41626.0,41625.0,4.99819446]
[1641898671512,0.1,41626.0,41625.0,4.99819446]
[1641898671711,0.076,41626.0,41625.0,4.99819446]
[1641898671968,0.126,41626.0,41625.0,4.99819446]
[1641898672564,0.39330659,41626.0,41625.0,4.99819446]
[1641898672760,0.126,41626.0,41625.0,4.99819446]
[1641898672961,0.1,41626.0,41625.0,4.99819446]
[1641898673561,0.055,41626.0,41625.0,5.00219446]
[1641898673762,0.38695544,41626.0,41625.0,3.90319446]
[1641898673962,0.45839542,41626.0,41625.0,3.90319446]
[1641898674162,0.37423998,41626.0,41625.0,3.90319446]
[1641898674762,0.62772009,41626.0,41625.0,3.89919446]
[1641898674963,0.62272009,41626.0,41625.0,3.89919446]
[1641898675166,0.36795175,41626.0,41625.0,3.89919446]
[1641898675564,0.38495175,41626.0,41625.0,3.89919446]
[1641898675815,0.2648,41626.0,41625.0,3.89919446]
[1641898676414,0.5525519,41626.0,41625.0,3.89919446]
[1641898676612,0.58641698,41626.0,41625.0,3.89919446]
[1641898677013,0.56941698,41626.0,41625.0,3.89919446]
[1641898677416,0.56941698,41626.0,41625.0,1.86842266]
[1641898677417,1.2964834,41626.0,41625.0,1.86842266]
[1641898677616,1.2964834,41626.0,41620.0,0.83446839]
[1641898677617,1.271,41624.0,41620.0,0.83446839]
[1641898677920,0.75955111,41623.0,41620.0,0.76891259]
[1641898678117,0.375928,41621.0,41620.0,0.0544442]
[1641898678314,0.32727316,41619.0,41618.0,0.01115351]
[1641898678515,0.47507316,41619.0,41618.0,0.01115351]
[1641898678715,0.47507316,41619.0,41618.0,0.00615351]
[1641898678916,0.90100116,41619.0,41618.0,0.00615351]
[1641898679116,0.623728,41619.0,41618.0,0.00615351]
[1641898679315,0.958329,41619.0,41618.0,0.00615351]
[1641898679570,0.636728,41619.0,41618.0,0.00615351]
[1641898680968,0.91538906,41619.0,41618.0,0.00615351]
[1641898681168,0.623728,41619.0,41618.0,0.00615351]
[1641898681368,0.91180843,41619.0,41618.0,0.00615351]
[1641898681569,0.92580843,41619.0,41618.0,0.00615351]
[1641898681868,1.908728,41619.0,41618.0,0.00615351]
[1641898682067,1.908728,41619.0,41618.0,0.02984173]
[1641898682068,1.90995396,41619.0,41618.0,0.02984173]
[1641898682270,2.40995396,41619.0,41618.0,0.02984173]
[1641898682468,1.13895396,41619.0,41618.0,0.02984173]
[1641898682870,1.137728,41619.0,41618.0,0.02984173]
[1641898683510,1.123728,41619.0,41618.0,0.02984173]
[1641898683711,1.135728,41619.0,41618.0,0.02984173]
[1641898683914,0.935728,41619.0,41618.0,0.02984173]
[1641898684115,0.5598,41619.0,41618.0,0.02984173]
[1641898684312,0.512,41619.0,41618.0,0.40679235]
[1641898684513,0.512,41619.0,41618.0,1.12126074]
[1641898684813,0.512,41619.0,41618.0,0.79534883]
[1641898685012,0.39484188,41626.0,41618.0,0.79534883]
[1641898685212,0.060076,41623.0,41618.0,0.79534883]
[1641898685412,0.39484542,41623.0,41618.0,0.08088044]
[1641898685814,0.39484542,41623.0,41618.0,0.08117532]
[1641898686215,0.060076,41623.0,41622.0,0.7144841]
[1641898686414,0.060074,41624.0,41622.0,0.7144841]
[1641898686613,0.171072,41626.0,41622.0,0.7144841]
[1641898686614,0.161,41626.0,41622.0,0.7144841]
[1641898686968,0.1,41626.0,41622.0,0.73817232]
[1641898687363,0.05,41626.0,41624.0,0.3205226]
[1641898687564,0.7,41627.0,41624.0,0.3205226]
[1641898687764,0.058,41626.0,41624.0,0.7144841]
[1641898688176,0.118068,41626.0,41624.0,0.7144841]
[1641898688566,0.168068,41626.0,41624.0,0.7144841]
[1641898688965,0.110068,41626.0,41624.0,0.7144841]
[1641898689767,0.159068,41626.0,41624.0,0.7144841]
[1641898689968,0.159068,41626.0,41625.0,0.02368822]
[1641898690368,0.534996,41626.0,41625.0,0.02368822]
[1641898690569,0.634996,41626.0,41625.0,0.02368822]
[1641898690817,0.534996,41626.0,41625.0,0.02368822]
[1641898691012,0.210068,41626.0,41625.0,0.02368822]
[1641898691615,0.259068,41626.0,41625.0,0.02368822]
[1641898692013,0.159068,41626.0,41625.0,0.02368822]
[1641898693023,0.110068,41626.0,41625.0,0.02368822]
[1641898693424,0.060068,41626.0,41625.0,0.02368822]
[1641898693620,0.109068,41626.0,41625.0,0.02368822]
[1641898694223,0.049,41626.0,41625.0,0.02368822]
[1641898694964,0.6,41629.0,41625.0,0.78919869]
[1641898695363,0.6,41629.0,41627.0,0.27903887]
[1641898695364,0.660064,41629.0,41627.0,0.27903887]
[1641898695563,0.660064,41629.0,41627.0,0.27563887]
[1641898695763,0.721064,41629.0,41628.0,0.02368822]
[1641898695971,0.771064,41629.0,41628.0,0.02368822]
[1641898696464,0.221064,41629.0,41628.0,0.02368822]
[1641898696664,0.121064,41629.0,41628.0,0.02368822]
[1641898697064,0.110064,41629.0,41628.0,0.02368822]
[1641898697263,0.060064,41629.0,41628.0,0.02368822]
[1641898697663,0.116064,41629.0,41628.0,0.02368822]
[1641898698317,0.166064,41629.0,41628.0,0.02368822]
[1641898698717,0.541992,41629.0,41628.0,0.02368822]
[1641898698916,0.641992,41629.0,41628.0,0.02368822]
[1641898699117,0.585992,41629.0,41628.0,0.02368822]
[1641898699716,0.639992,41629.0,41625.0,0.7144841]
[1641898699918,0.264064,41629.0,41627.0,0.02368822]
[1641898700218,0.164064,41629.0,41627.0,0.02368822]
[1641898700418,0.435998,41628.0,41627.0,0.02368822]
[1641898700622,0.85339531,41628.0,41627.0,0.02368822]
[1641898701720,0.91039531,41628.0,41627.0,0.02368822]
[1641898701968,0.97602531,41628.0,41627.0,0.02368822]
[1641898702270,1.0250729,41628.0,41624.0,0.7144841]
[1641898702472,0.06008037,41627.0,41625.0,0.02368822]
[1641898702668,0.98928942,41626.0,41625.0,0.02368822]
[1641898703068,1.18928942,41626.0,41625.0,0.02368822]
[1641898703673,1.20128942,41626.0,41625.0,0.02368822]
[1641898704070,1.69708942,41626.0,41625.0,0.02368822]
[1641898705074,1.68508942,41626.0,41625.0,0.02368822]
[1641898705472,0.50440334,41624.0,41621.0,0.00033144]
[1641898705718,0.7057843,41623.0,41621.0,0.00033144]
[1641898705917,0.423728,41623.0,41621.0,0.00033144]
[1641898706220,0.1478,41623.0,41620.0,0.02401968]
[1641898706818,0.52068408,41623.0,41620.0,0.02401968]
[1641898707020,0.1478,41623.0,41620.0,0.02401968]
[1641898707218,0.1478,41623.0,41620.0,0.02368822]
[1641898707418,0.0478,41623.0,41620.0,0.02368822]
[1641898707818,0.0648,41623.0,41620.0,0.02368822]
[1641898708219,0.29850438,41622.0,41620.0,0.02368822]
[1641898708420,0.810081,41621.0,41620.0,0.02368822]
[1641898708619,1.71857842,41621.0,41620.0,0.02368822]
[1641898708824,0.633809,41621.0,41620.0,0.02368822]
[1641898709019,0.573728,41621.0,41620.0,0.02368822]
[1641898709865,0.583728,41621.0,41620.0,0.02368822]
[1641898710066,0.060081,41620.0,41619.0,0.02368822]
[1641898710267,0.833809,41620.0,41619.0,0.02368822]
[1641898710467,0.77795818,41620.0,41619.0,0.02368822]
[1641898710667,0.87795818,41620.0,41619.0,0.02368822]
[1641898710871,0.81787718,41620.0,41619.0,0.02368822]
[1641898711870,0.82887718,41620.0,41619.0,0.02368822]
[1641898713721,0.545728,41620.0,41619.0,0.02368822]
[1641898713924,0.497928,41620.0,41619.0,0.02368822]
[1641898714422,0.022,41620.0,41619.0,0.02368822]
[1641898714922,0.022,41620.0,41619.0,0.27049528]
[1641898715122,0.5,41621.0,41619.0,0.32152994]
[1641898715422,0.33476942,41624.0,41619.0,0.32152994]
[1641898715721,0.051,41621.0,41619.0,0.32152994]
[1641898715924,0.051,41621.0,41620.0,0.05103466]
[1641898716322,0.051,41621.0,41620.0,0.07472288]
[1641898716523,0.051,41621.0,41618.0,0.00662623]
[1641898716524,0.38576942,41621.0,41618.0,0.00662623]
[1641898716729,0.375928,41619.0,41618.0,0.00662623]
[1641898716980,0.0478,41619.0,41618.0,0.00662623]
[1641898717175,0.523728,41619.0,41618.0,0.00662623]
[1641898717374,0.573728,41619.0,41618.0,0.00662623]
[1641898717774,0.585728,41619.0,41618.0,0.00662623]
[1641898717976,1.085728,41619.0,41617.0,0.00125123]
[1641898718175,0.375928,41618.0,41617.0,0.00125123]
[1641898718375,0.418728,41618.0,41617.0,0.00125123]
[1641898718576,0.518728,41618.0,41617.0,0.00125123]
[1641898718974,0.518728,41618.0,41610.0,0.00131003]
[1641898719176,0.060086,41615.0,41609.0,0.0022]
[1641898719381,0.0478,41614.0,41609.0,0.0022]
[1641898719574,0.0978,41614.0,41609.0,0.0022]
[1641898719775,0.095808,41614.0,41609.0,0.0022]
[1641898720176,0.095808,41614.0,41611.0,0.32761403]
[1641898721219,0.32761438,41613.0,41609.0,0.0022]
[1641898721422,0.107891,41612.0,41609.0,0.0022]
[1641898721620,0.060097,41611.0,41609.0,0.0022]
[1641898721819,0.0478,41610.0,41609.0,0.00249116]
[1641898722422,0.060093,41609.0,41605.0,0.001]
[1641898722621,0.97355,41606.0,41605.0,0.001]
[1641898722821,1.35620888,41606.0,41605.0,0.001]
[1641898723022,1.45620888,41606.0,41605.0,0.001]
[1641898723622,1.1285945,41606.0,41605.0,0.001]
[1641898723822,1.1425945,41606.0,41605.0,0.001]
[1641898724675,0.5,41604.0,41600.0,0.022]
[1641898724870,0.5,41604.0,41601.0,0.12139193]
[1641898724871,0.347547,41603.0,41601.0,0.12139193]
[1641898725070,0.83918198,41602.0,41601.0,0.12139193]
[1641898725272,1.17494671,41602.0,41601.0,0.12139193]
[1641898725469,1.27494671,41602.0,41600.0,0.022]
[1641898725669,0.92351078,41601.0,41600.0,0.022]
[1641898725868,1.49041436,41601.0,41600.0,0.022]
[1641898726069,2.51916382,41601.0,41600.0,0.022]
[1641898726669,1.24816382,41601.0,41600.0,0.022]
[1641898727069,0.98539,41601.0,41600.0,0.022]
[1641898727869,1.00239,41601.0,41600.0,0.022]
[1641898728321,0.90239,41601.0,41600.0,0.022]
[1641898728924,0.52634,41601.0,41600.0,0.022]
[1641898729126,0.5,41606.0,41600.0,0.022]
[1641898729321,0.5,41606.0,41601.0,0.00124628]
[1641898729521,0.37605,41605.0,41601.0,0.00124628]
[1641898729929,0.064,41606.0,41601.0,0.00124628]
[1641898730322,0.064,41606.0,41601.0,0.00153584]
[1641898730922,0.064,41606.0,41601.0,0.81830645]
[1641898731220,0.3201891,41609.0,41601.0,0.81801689]
[1641898731420,0.3201891,41609.0,41601.0,0.81830645]
[1641898731621,0.060093,41610.0,41601.0,0.00153584]
[1641898731820,0.064,41609.0,41601.0,0.00153584]
[1641898732072,0.060098,41608.0,41601.0,0.00153584]
[1641898732478,0.060098,41608.0,41601.0,0.00124628]
[1641898732669,0.060098,41608.0,41602.0,0.00028955]
[1641898733670,0.060098,41608.0,41601.0,0.00124628]
[1641898733869,0.123098,41608.0,41603.0,0.00028954]
[1641898734671,0.123098,41608.0,41604.0,0.27443574]
[1641898735076,0.060098,41608.0,41604.0,0.27443574]
[1641898735473,0.060098,41608.0,41603.0,0.00028953]
[1641898735914,0.123098,41608.0,41603.0,0.00028953]
[1641898736114,0.060101,41606.0,41600.0,0.022]
[1641898736313,0.060101,41604.0,41603.0,0.00028953]
[1641898736715,0.063,41608.0,41603.0,0.00028953]
[1641898737116,0.220201,41609.0,41603.0,0.00028953]
[1641898737316,0.49625,41608.0,41600.0,0.022]
[1641898737517,0.59625,41608.0,41603.0,0.00028953]
[1641898738017,0.69125,41608.0,41603.0,0.00028953]
[1641898738216,0.631148,41608.0,41603.0,0.00028953]
[1641898738419,0.255098,41608.0,41606.0,0.27767217]
[1641898738717,0.195,41608.0,41603.0,0.00028953]
[1641898738916,0.095,41608.0,41603.0,0.00028953]
[1641898739116,0.110092,41611.0,41609.0,0.26342931]
[1641898739315,0.37605,41610.0,41609.0,0.26342931]
[1641898739568,0.47605,41610.0,41609.0,0.26342931]
[1641898739765,0.49505,41610.0,41609.0,0.26342931]
[1641898741167,0.87605,41610.0,41607.0,0.00028949]
[1641898741367,0.47605,41610.0,41607.0,0.00028949]
[1641898741767,0.52805,41610.0,41607.0,0.00028949]
[1641898742167,0.588145,41610.0,41601.0,0.00125764]
[1641898742367,0.212095,41610.0,41606.0,0.0002895]
[1641898742568,0.37605,41609.0,41606.0,0.0002895]
[1641898742975,0.646251,41609.0,41606.0,0.0002895]
[1641898743218,0.646251,41609.0,41601.0,0.00125764]
[1641898743420,0.0601,41608.0,41605.0,0.00028951]
[1641898743629,0.37605,41607.0,41605.0,0.00028951]
[1641898743818,0.42605,41607.0,41605.0,0.00028951]
[1641898744019,0.52605,41607.0,41605.0,0.00028951]
[1641898744418,0.52605,41607.0,41604.0,0.29243539]
[1641898744619,0.52605,41607.0,41604.0,0.29272492]
[1641898745020,0.52605,41607.0,41604.0,0.28422492]
[1641898745221,0.52605,41607.0,41604.0,0.28057005]
[1641898745626,0.52605,41607.0,41601.0,0.00125764]
[1641898745824,0.060102,41604.0,41603.0,0.00028953]
[1641898746020,0.436152,41604.0,41603.0,0.00028953]
[1641898746421,0.42605,41604.0,41603.0,0.00028953]
[1641898746623,0.37605,41604.0,41603.0,0.00028953]
[1641898746824,0.028,41607.0,41603.0,0.00028953]
[1641898746825,0.028,41607.0,41603.0,0.1]
[1641898747072,0.5,41618.0,41606.0,1.05121797]
[1641898747073,0.31880264,41617.0,41606.0,1.05121797]
[1641898747271,0.31880264,41617.0,41606.0,0.95121797]
[1641898747474,0.31966049,41622.0,41606.0,0.95121797]
[1641898747672,0.40557695,41616.0,41612.0,0.25789072]
[1641898747870,0.060086,41616.0,41612.0,0.53499951]
[1641898748070,0.37605,41615.0,41612.0,0.25789072]
[1641898748772,0.31880264,41620.0,41612.0,0.25789072]
[1641898748973,0.37605,41619.0,41612.0,0.25789072]
[1641898749174,0.37605,41619.0,41616.0,0.32204999]
[1641898749573,0.37605,41619.0,41612.0,0.25789072]
[1641898750075,0.486131,41619.0,41612.0,0.25789072]
[1641898750475,0.42912574,41616.0,41605.0,0.32212215]
[1641898750716,0.42912574,41616.0,41607.0,0.00028946]
[1641898750920,0.15,41619.0,41607.0,0.00028946]
[1641898751520,0.26115636,41618.0,41610.0,0.29953073]
[1641898751718,0.436138,41617.0,41610.0,0.29953073]
[1641898752118,0.060087,41615.0,41610.0,0.29953073]
[1641898752519,0.060087,41615.0,41607.0,0.00156484]
[1641898752918,0.060087,41615.0,41607.0,0.00127537]
[1641898753118,0.060087,41615.0,41607.0,0.00156485]
[1641898753523,0.060087,41615.0,41609.0,0.24220696]
[1641898753920,0.31880264,41616.0,41609.0,0.24220696]
[1641898754568,0.36880264,41616.0,41609.0,0.24220696]
[1641898755067,0.76692917,41616.0,41609.0,0.24220696]
[1641898755468,0.37605,41615.0,41609.0,0.24220696]
[1641898755869,0.36880264,41616.0,41609.0,0.24220696]
[1641898756076,0.05,41616.0,41609.0,0.24220696]
[1641898756470,0.060084,41617.0,41609.0,0.24220696]
[1641898756674,0.51714118,41621.0,41609.0,0.24220696]
[1641898756675,0.4159,41621.0,41610.0,0.00121386]
[1641898757071,0.31880264,41620.0,41610.0,0.00121386]
[1641898757276,0.31880264,41620.0,41613.0,2.74100763]
[1641898757671,0.31880264,41620.0,41618.0,0.25848712]
[1641898758072,0.00085804,41622.0,41618.0,0.25848712]
[1641898758925,0.31880264,41626.0,41618.0,0.55347779]
[1641898759226,0.00085809,41622.0,41618.0,0.55347779]
[1641898759823,0.31880264,41626.0,41618.0,0.55347779]
[1641898760024,0.37605,41625.0,41618.0,0.55347779]
[1641898760524,0.060073,41628.0,41618.0,0.55347779]
[1641898760826,0.37605,41627.0,41618.0,0.55347779]
[1641898761025,0.47605,41627.0,41618.0,0.55347779]
[1641898761230,0.52605,41627.0,41618.0,0.55347779]
[1641898761625,0.52605,41627.0,41618.0,0.25848712]
[1641898762069,0.060072,41626.0,41618.0,0.25848712]
[1641898762269,0.37605,41625.0,41618.0,0.25848712]
[1641898762471,0.42605,41625.0,41618.0,0.25848712]
[1641898762668,0.42605,41625.0,41618.0,0.52605144]
[1641898763272,0.05,41625.0,41618.0,0.52605144]
[1641898763471,0.5,41628.0,41622.0,0.0012396]
[1641898763671,0.5,41628.0,41625.0,0.28664048]
[1641898764271,0.31760304,41630.0,41626.0,0.29751716]
[1641898765171,0.00085805,41630.0,41626.0,0.29751716]
[1641898766023,0.4159,41631.0,41626.0,0.29751716]
[1641898766227,0.00085805,41630.0,41626.0,0.55475725]
[1641898766432,0.00085805,41630.0,41628.0,0.1]
[1641898766629,0.00085805,41630.0,41629.0,0.37605]
[1641898767227,0.59940915,41637.0,41629.0,0.37605]
[1641898767427,0.00085804,41632.0,41626.0,0.55600574]
[1641898767626,0.00085804,41632.0,41626.0,0.29876565]
[1641898768529,0.28864417,41636.0,41626.0,0.29876565]
[1641898768728,0.00085804,41631.0,41626.0,0.61750415]
[1641898768931,0.00085804,41631.0,41627.0,0.37605]
[1641898769768,0.110056,41637.0,41627.0,0.37605]
[1641898769973,0.31760304,41639.0,41629.0,0.10120415]
[1641898769974,0.00085804,41631.0,41629.0,0.10120415]
[1641898770169,0.00085804,41631.0,41630.0,0.37605]
[1641898770972,0.14379425,41643.0,41635.0,0.00124426]
[1641898770973,0.05,41643.0,41635.0,0.00124426]
[1641898771171,0.05,41643.0,41635.0,0.03774426]
[1641898771577,0.59940915,41646.0,41635.0,0.03774426]
[1641898771769,0.59940915,41646.0,41641.0,0.00125276]
[1641898771970,0.42605,41645.0,41641.0,0.00125276]
[1641898772170,0.42605,41645.0,41633.0,0.00127135]
[1641898772469,0.00085797,41643.0,41633.0,0.00127135]
[1641898772871,0.00085797,41643.0,41630.0,0.81677061]
[1641898773071,0.34805948,41643.0,41630.0,0.81677061]
[1641898773331,0.34805948,41643.0,41628.0,0.00129055]
[1641898773332,0.44805948,41643.0,41628.0,0.00129055]
[1641898773530,0.00085799,41639.0,41628.0,0.00129055]
[1641898774136,0.00085799,41639.0,41629.0,0.2779035]
[1641898774332,0.00085799,41639.0,41624.0,1.1858]
[1641898774333,0.33798979,41637.0,41624.0,1.1858]
[1641898774533,0.12645297,41636.0,41623.0,0.8180067]